bitfinex/quotes_ETHUSD_20240717
["timestamp","ask_amount","ask_price","bid_price","bid_amount"]
[1721215282785,3.0,3467.9,3467.2,4.315231]
[1721215282997,3.0,3468.0,3467.2,4.315231]
[1721215283206,3.0,3468.0,3467.3,2.88408]
[1721215283386,5.88351,3468.0,3467.4,0.55]
[1721215284008,2.8836,3467.9,3467.3,0.55]
[1721215284187,3.0,3467.8,3467.3,4.4582351]
[1721215284513,2.8831,3468.5,3467.7,2.88375]
[1721215284963,2.458,3469.0,3467.8,0.55]
[1721215285164,2.458,3469.0,3468.1,2.88336]
[1721215285364,5.34072,3469.0,3468.2,3.43331]
[1721215285667,2.88287,3468.8,3467.9,0.343375]
[1721215286003,2.458,3469.0,3468.0,0.55]
[1721215286004,2.88309,3468.5,3468.0,0.55]
[1721215286216,2.88309,3468.5,3467.3,1.0241551]
[1721215286217,3.428,3468.5,3467.3,1.0241551]
[1721215286420,2.8835,3468.1,3467.1,2.88418]
[1721215286583,3.428,3468.5,3466.7,2.88455]
[1721215286584,2.88373,3467.8,3466.7,2.88455]
[1721215286765,2.88389,3467.6,3466.6,5.92666]
[1721215286970,2.88389,3467.6,3466.6,2.88466]
[1721215286971,2.88405,3467.4,3466.6,2.88466]
[1721215287169,2.88409,3467.3,3466.5,2.88469]
[1721215287367,2.88409,3467.3,3466.6,0.576957]
[1721215287781,2.88409,3467.3,3466.7,2.88458]
[1721215288613,2.88417,3467.2,3466.6,0.576957]
[1721215288780,2.88426,3467.1,3466.3,5.92689]
[1721215288979,3.0,3467.5,3466.3,5.92689]
[1721215288980,2.88415,3467.3,3466.5,2.88471]
[1721215289702,3.0,3467.5,3466.9,2.88436]
[1721215289906,5.88375,3467.7,3467.0,2.88432]
[1721215290068,3.0,3467.7,3466.5,3.042]
[1721215290273,5.31631,3468.0,3467.0,2.88433]
[1721215290503,3.0,3467.9,3467.1,0.55]
[1721215290703,5.88358,3467.9,3467.1,0.55]
[1721215291092,3.0,3467.9,3467.1,3.43424]
[1721215291297,2.4328,3468.0,3467.1,3.43424]
[1721215291474,2.4328,3468.0,3467.1,4.066111]
[1721215291475,5.3163,3468.0,3467.1,4.066111]
[1721215291673,2.88373,3467.8,3467.1,1.181871]
[1721215291997,2.88385,3467.6,3467.1,1.181871]
[1721215292211,2.88385,3467.6,3467.1,0.55]
[1721215292505,3.0,3467.5,3466.8,0.55]
[1721215293272,2.4328,3468.0,3466.8,0.55]
[1721215293473,2.88381,3467.7,3466.8,0.55]
[1721215293804,3.0,3467.6,3466.8,0.55]
[1721215294119,2.4328,3468.0,3466.8,0.55]
[1721215294120,2.88355,3468.0,3467.0,2.88433]
[1721215294315,2.88363,3467.9,3467.1,0.55]
[1721215294610,2.88348,3468.1,3467.1,0.55]
[1721215295568,2.88329,3468.3,3467.2,2.88414]
[1721215295816,2.88336,3468.2,3467.3,4.081694]
[1721215295983,5.88321,3468.4,3467.4,0.55]
[1721215296388,2.88328,3468.3,3467.4,0.55]
[1721215297188,3.0,3468.4,3467.4,0.55]
[1721215297395,3.0,3468.6,3467.9,2.88358]
[1721215297600,3.0,3468.6,3468.0,0.288358]
[1721215297802,3.0,3468.6,3467.9,2.88358]
[1721215300511,3.0,3468.6,3467.7,2.88367]
[1721215300706,3.0,3468.6,3467.5,3.042]
[1721215300707,3.0,3468.6,3467.8,0.55]
[1721215301235,3.0,3468.6,3467.7,2.88374]
[1721215301556,3.0,3468.6,3467.8,3.43365]
[1721215301834,3.0,3468.6,3467.8,3.43364]
[1721215303800,3.0,3468.6,3467.8,0.55]
[1721215303997,3.0,3468.6,3467.7,3.43375]
[1721215304438,3.0,3468.6,3467.8,2.88365]
[1721215304736,3.0,3468.6,3467.9,0.55]
[1721215305908,3.0,3468.6,3467.9,3.43357]
[1721215307138,3.0,3468.6,3468.0,2.8835]
[1721215307640,3.0,3468.6,3467.9,0.55]
[1721215308545,3.0,3468.6,3468.0,1.49955931]
[1721215308844,3.0,3468.6,3468.0,3.38037286]
[1721215309625,3.0,3468.6,3467.8,0.59988065]
[1721215309814,3.0,3468.6,3467.9,1.00268703]
[1721215309815,2.88311,3468.5,3467.9,1.00268703]
[1721215310143,2.88311,3468.5,3467.7,0.59988065]
[1721215310352,2.88311,3468.5,3467.8,2.50666491]
[1721215310570,3.0,3468.6,3467.9,1.00266596]
[1721215310713,2.88317,3468.5,3467.6,3.48367065]
[1721215311072,2.88319,3468.4,3467.7,1.0026581]
[1721215311360,2.88319,3468.4,3467.5,0.59988065]
[1721215311361,2.88309,3468.5,3467.5,3.48372065]
[1721215311547,2.88309,3468.5,3467.6,6.74857172]
[1721215311754,2.88309,3468.5,3467.7,1.00271092]
[1721215311953,2.88309,3468.5,3467.6,4.24179441]
[1721215312453,2.446,3468.4,3467.6,4.24179441]
[1721215312622,2.446,3468.4,3467.7,2.5067574]
[1721215312814,2.446,3468.4,3467.8,0.73484325]
[1721215313027,2.446,3468.4,3467.9,2.88352]
[1721215313331,2.446,3468.4,3468.0,0.55]
[1721215313531,2.446,3468.4,3467.8,3.61848325]
[1721215313971,2.446,3468.4,3467.9,0.55]
[1721215314829,2.446,3468.4,3467.4,2.88394]
[1721215315033,2.88327,3468.3,3467.5,1.55272145]
[1721215315235,2.88334,3468.2,3467.2,3.48397065]
[1721215315464,2.446,3468.0,3467.2,2.88409]
[1721215315874,5.32942,3468.1,3467.2,2.88409]
[1721215316171,2.446,3468.1,3467.2,2.88409]
[1721215316324,2.446,3468.1,3467.3,4.220679]
[1721215316532,2.446,3468.1,3467.3,1.336609]
[1721215316832,2.446,3468.1,3467.4,0.55]
[1721215317472,2.88327,3468.3,3467.4,0.55]
[1721215317781,2.88339,3468.2,3467.4,0.55]
[1721215317958,2.88327,3468.3,3467.4,0.55]
[1721215318163,5.3291,3468.5,3467.5,3.6493889]
[1721215318363,3.0,3468.4,3467.5,3.6493889]
[1721215318663,3.0,3468.4,3467.6,0.55]
[1721215320334,5.88318,3468.4,3467.6,0.55]
[1721215320535,2.446,3468.1,3467.1,0.59988065]
[1721215320759,5.32947,3468.1,3467.2,0.55]
[1721215320954,5.32947,3468.1,3467.2,2.88412]
[1721215321131,5.32947,3468.1,3467.3,0.55]
[1721215321584,5.32947,3468.1,3467.1,0.55]
[1721215321751,5.32947,3468.1,3467.2,0.70761407]
[1721215321936,5.32947,3468.1,3467.3,0.55]
[1721215322633,2.446,3468.1,3467.3,0.55]
[1721215322843,5.446,3468.1,3467.3,0.55]
[1721215323065,3.0,3468.1,3467.4,2.88394]
[1721215323249,2.88321,3468.4,3467.5,1.26835541]
[1721215323250,3.0,3468.3,3467.5,1.26835541]
[1721215323738,5.88328,3468.3,3467.5,1.26835541]
[1721215323940,5.88328,3468.3,3467.5,0.55]
[1721215324133,5.88328,3468.3,3467.4,3.434]
[1721215324640,5.88328,3468.3,3467.4,0.55]
[1721215324839,2.446,3468.1,3467.0,5.92633]
[1721215325139,2.446,3467.7,3466.7,5.92657]
[1721215325367,2.446,3467.7,3466.8,1.68510507]
[1721215325574,8.32975,3467.7,3466.8,1.68510507]
[1721215325882,8.32975,3467.7,3466.6,3.042]
[1721215325883,2.88384,3467.6,3466.6,3.042]
[1721215326172,8.32975,3467.7,3466.6,5.92666]
[1721215326377,8.32975,3467.7,3466.8,2.8845]
[1721215326579,8.32975,3467.7,3466.7,3.042]
[1721215326776,8.32975,3467.7,3466.8,2.88449]
[1721215326777,5.446,3467.7,3466.8,2.88449]
[1721215326962,2.446,3467.7,3466.9,1.142649]
[1721215327147,3.0,3467.8,3466.9,4.184649]
[1721215327352,2.88351,3468.0,3467.0,3.88717284]
[1721215327562,3.0,3467.9,3467.1,0.55]
[1721215328793,2.8832,3468.4,3467.4,2.884]
[1721215328937,2.8832,3468.4,3467.5,1.68169161]
[1721215329137,2.446,3468.6,3467.6,2.88381]
[1721215329485,5.32903,3468.6,3467.7,0.55]
[1721215329974,2.8831,3468.5,3467.7,0.55]
[1721215330178,2.8831,3468.5,3467.8,1.04913916]
[1721215330678,2.88322,3468.4,3467.3,2.88402]
[1721215330879,2.8831,3468.5,3467.3,5.92601]
[1721215330880,2.88326,3468.3,3467.3,5.92601]
[1721215331177,2.88326,3468.3,3467.4,3.434]
[1721215332360,2.8831,3468.5,3467.4,3.434]
[1721215332979,2.88318,3468.4,3467.4,3.434]
[1721215333184,2.88318,3468.4,3467.5,0.936015]
[1721215333491,5.32902,3468.6,3467.6,3.43382]
[1721215333775,2.88311,3468.5,3467.6,3.43382]
[1721215333986,2.88311,3468.5,3467.6,0.55]
[1721215334275,2.88311,3468.5,3467.7,0.7411955]
[1721215334482,5.76594,3468.7,3467.7,0.7411955]
[1721215334664,3.0,3468.6,3467.7,0.7411955]
[1721215334982,2.88309,3468.5,3467.7,0.7411955]
[1721215335285,8.32892,3468.7,3467.7,0.7411955]
[1721215335492,8.32892,3468.7,3467.8,0.87528412]
[1721215335898,2.446,3468.3,3467.4,0.59988065]
[1721215336100,2.8832,3468.4,3466.8,0.59988065]
[1721215336279,2.446,3468.5,3467.0,0.59988065]
[1721215336477,2.88355,3468.0,3467.1,1.00282581]
[1721215336672,3.0,3467.9,3467.2,0.67715458]
[1721215337794,3.0,3467.9,3467.2,3.71915458]
[1721215338002,3.0,3468.1,3467.5,2.8839]
[1721215338169,2.88309,3468.5,3467.6,0.55]
[1721215338170,2.88318,3468.4,3467.6,0.55]
[1721215338371,5.88318,3468.4,3467.6,0.55]
[1721215338571,2.88307,3468.6,3467.7,0.64759]
[1721215338870,5.32896,3468.7,3467.7,0.64759]
[1721215339084,2.88296,3468.7,3467.8,0.55]
[1721215340291,2.88278,3468.9,3467.8,3.43366]
[1721215340292,2.88285,3468.8,3467.8,3.43366]
[1721215340472,5.88285,3468.8,3467.8,3.43366]
[1721215340830,5.88285,3468.8,3467.9,1.06068707]
[1721215340831,2.88293,3468.7,3467.9,1.06068707]
[1721215341112,2.446,3468.6,3467.8,0.55]
[1721215341314,2.88311,3468.5,3467.7,0.55]
[1721215341608,2.88311,3468.5,3467.3,2.88405]
[1721215341609,5.32975,3467.8,3466.8,0.59988065]
[1721215341913,5.32975,3467.8,3466.7,2.88453]
[1721215341914,2.88376,3467.7,3466.9,1.00289858]
[1721215342076,2.88376,3467.7,3467.0,0.44873092]
[1721215342869,2.446,3467.8,3467.0,0.44873092]
[1721215343076,2.88345,3468.1,3467.0,0.44873092]
[1721215343321,3.0,3468.0,3467.1,1.00278971]
[1721215343475,3.0,3468.0,3467.2,1.08620813]
[1721215343677,3.0,3468.0,3467.3,5.92606]
[1721215343983,2.446,3468.2,3467.4,0.55]
[1721215345193,9.726,3468.6,3467.4,3.592]
[1721215345420,2.2629,3468.9,3467.8,2.8836]
[1721215345582,2.8829,3468.8,3467.9,1.31256]
[1721215346224,2.88281,3468.9,3467.9,4.19614]
[1721215347189,2.88261,3469.1,3467.9,4.19614]
[1721215347190,2.88261,3469.1,3468.0,2.88343]
[1721215347411,5.88268,3469.0,3468.1,0.55]
[1721215350531,5.88268,3469.0,3468.1,3.43337]
[1721215350736,5.88268,3469.0,3468.2,1.012135]
[1721215351160,3.0,3469.0,3468.3,3.43322]
[1721215351608,2.88198,3469.9,3468.5,2.88306]
[1721215351817,7.28,3470.0,3469.0,3.042]
[1721215351818,2.446,3470.0,3469.0,3.042]
[1721215352043,2.446,3470.0,3469.1,0.55]
[1721215352044,5.32784,3470.0,3469.1,0.55]
[1721215352361,5.32784,3470.0,3469.1,3.43257]
[1721215353170,2.446,3470.0,3469.1,3.43257]
[1721215353845,2.446,3470.0,3469.2,2.8825]
[1721215354061,2.446,3470.0,3469.3,4.6767944]
[1721215354239,2.446,3470.4,3469.3,4.6767944]
[1721215354431,2.88162,3470.3,3469.3,4.6767944]
[1721215355911,3.0,3470.2,3469.4,2.88232]
[1721215356117,3.0,3470.2,3469.5,1.06011144]
[1721215356452,2.88131,3470.7,3469.6,2.88215]
[1721215356656,2.88131,3470.7,3469.7,0.05763213]
[1721215356841,2.88131,3470.7,3469.6,2.88215]
[1721215357048,2.88131,3470.7,3469.7,0.39422614]
[1721215357250,2.88143,3470.5,3469.7,0.39422614]
[1721215357565,2.88143,3470.5,3469.3,6.47439]
[1721215357566,2.8816,3470.3,3469.3,6.47439]
[1721215357779,2.446,3470.2,3469.3,6.47439]
[1721215357921,2.446,3470.2,3469.4,2.88234]
[1721215358975,2.446,3470.2,3469.3,0.55]
[1721215359336,2.446,3470.2,3469.4,2.88228]
[1721215359631,2.446,3470.2,3469.5,0.935678]
[1721215360165,2.88143,3470.5,3469.5,3.817928]
[1721215360332,2.88143,3470.5,3469.6,2.88217]
[1721215361561,2.88152,3470.4,3469.6,2.88217]
[1721215361760,2.88152,3470.4,3469.5,0.935678]
[1721215361937,2.88152,3470.4,3469.5,3.817928]
[1721215362261,2.88152,3470.4,3469.6,1.0292338]
[1721215362565,2.88146,3470.5,3469.6,3.9113938]
[1721215362922,2.446,3470.6,3469.7,5.92404]
[1721215363242,2.3976,3471.1,3469.9,2.88186]
[1721215363243,8.32705,3471.0,3469.9,2.88186]
[1721215363448,5.32705,3471.0,3470.0,0.93559]
[1721215363632,3.0,3470.9,3470.0,0.93559]
[1721215364419,2.8814,3470.6,3470.0,0.93559]
[1721215364633,5.3274,3470.6,3469.6,1.0292338]
[1721215364860,2.88156,3470.4,3469.5,2.88225]
[1721215365061,2.88156,3470.4,3469.3,5.92435]
[1721215365228,5.3274,3470.6,3469.5,2.88225]
[1721215365815,5.3274,3470.6,3469.1,3.042]
[1721215365816,2.88169,3470.2,3469.1,3.042]
[1721215366015,2.88169,3470.2,3469.2,0.55]
[1721215366016,5.32769,3470.2,3469.2,0.55]
[1721215366268,5.32769,3470.2,3469.2,1.5061594]
[1721215366773,2.88184,3470.0,3469.2,1.5061594]
[1721215366957,2.88202,3469.8,3469.0,0.592474]
[1721215367264,2.446,3469.8,3468.4,7.44]
[1721215367464,5.32868,3469.0,3468.0,2.74697307]
[1721215367621,5.32868,3469.0,3468.0,2.4478]
[1721215367822,5.32868,3469.0,3468.0,5.4898]
[1721215368020,5.32868,3469.0,3468.0,8.37328]
[1721215368240,5.32868,3469.0,3468.1,1.295691]
[1721215368436,5.32868,3469.0,3468.1,4.337691]
[1721215368620,2.88284,3468.8,3468.1,1.295691]
[1721215368854,2.88284,3468.8,3467.9,3.042]
[1721215369481,2.446,3469.0,3467.9,3.042]
[1721215369679,2.88265,3469.1,3467.9,3.042]
[1721215369977,2.446,3469.4,3468.3,5.92524]
[1721215370160,2.446,3469.4,3468.4,3.764028]
[1721215370332,2.88248,3469.3,3468.4,0.880858]
[1721215370527,5.88251,3469.2,3468.4,0.880858]
[1721215370751,5.88251,3469.2,3468.5,0.55]
[1721215371075,2.8828,3468.9,3467.9,5.92558]
[1721215371371,2.8828,3468.9,3468.0,0.55]
[1721215371573,2.8828,3468.9,3467.8,0.29938107]
[1721215371746,2.8828,3468.9,3467.9,0.55187011]
[1721215371747,2.88293,3468.7,3467.9,0.55187011]
[1721215372252,2.8828,3468.9,3467.9,0.55187011]
[1721215372253,5.76562,3468.9,3467.9,0.55187011]
[1721215372449,2.8828,3468.9,3467.9,3.43543011]
[1721215372849,3.0,3469.2,3468.2,2.88333]
[1721215373136,2.88276,3468.9,3468.3,0.592533]
[1721215373334,2.88276,3468.9,3468.0,2.88342]
[1721215373575,2.88266,3469.1,3468.1,6.47542]
[1721215373878,2.88306,3468.6,3467.9,0.55187011]
[1721215374185,2.88341,3468.2,3467.2,10.32411]
[1721215374328,2.88343,3468.1,3467.2,2.88411]
[1721215374832,2.88343,3468.1,3467.3,2.88408]
[1721215375030,2.88321,3468.4,3467.4,0.576819]
[1721215375031,2.88328,3468.3,3467.4,0.576819]
[1721215375267,8.32878,3468.9,3467.5,3.042]
[1721215375428,3.0,3468.9,3467.9,2.88358]
[1721215375632,5.88278,3468.9,3467.9,2.88358]
[1721215375832,2.446,3469.3,3468.2,2.88332]
[1721215375833,2.88257,3469.2,3468.2,2.88332]
[1721215376147,3.0,3469.1,3468.3,0.592532]
[1721215376484,2.88245,3469.3,3468.3,0.592532]
[1721215376485,3.0,3469.2,3468.3,0.592532]
[1721215376773,3.0,3469.2,3468.3,3.475772]
[1721215376956,5.88251,3469.2,3468.4,0.55]
[1721215377792,3.0,3469.2,3468.4,0.55]
[1721215377948,2.446,3469.3,3468.5,0.9951112]
[1721215377949,5.446,3469.3,3468.5,0.9951112]
[1721215378286,3.0,3469.4,3468.5,3.8781412]
[1721215378435,2.8823,3469.5,3468.6,0.55]
[1721215378635,3.0,3469.4,3468.7,1.03532812]
[1721215379579,2.88225,3469.5,3468.7,1.03532812]
[1721215379766,3.0,3469.4,3468.7,1.03532812]
[1721215380249,5.88227,3469.5,3468.7,1.03532812]
[1721215380450,3.0,3469.5,3468.7,1.03532812]
[1721215380675,3.0,3469.5,3468.8,0.46273281]
[1721215380868,3.0,3469.5,3468.7,1.03532812]
[1721215380869,5.88231,3469.5,3468.7,1.03532812]
[1721215381073,2.88251,3469.2,3468.2,3.042]
[1721215381241,2.88251,3469.2,3468.3,0.55]
[1721215382167,2.88251,3469.2,3468.3,3.43325]
[1721215382881,2.88251,3469.2,3468.3,0.55]
[1721215383193,2.88234,3469.4,3468.3,3.43325]
[1721215383486,3.0,3469.3,3468.4,0.935858]
[1721215383681,3.0,3469.3,3468.5,6.47502]
[1721215383853,2.88204,3469.8,3468.7,5.2402]
[1721215384175,2.88204,3469.8,3468.8,3.43279]
[1721215384508,2.88204,3469.8,3468.9,1.171502]
[1721215384651,2.88209,3469.7,3468.9,1.171502]
[1721215384849,2.88219,3469.6,3468.9,1.171502]
[1721215386965,2.88232,3469.5,3468.9,1.171502]
[1721215387155,2.88232,3469.5,3468.7,2.3573]
[1721215387972,2.88217,3469.6,3468.7,5.24021]
[1721215388502,2.88226,3469.5,3468.7,2.3573]
[1721215388682,5.446,3470.1,3468.4,2.635858]
[1721215388683,2.88235,3469.4,3468.4,0.935858]
[1721215388871,2.88251,3469.2,3468.4,0.935858]
[1721215389195,2.8826,3469.1,3468.4,0.935858]
[1721215389692,0.532835,3469.4,3468.0,2.92]
[1721215389894,2.88289,3468.8,3468.0,5.80344]
[1721215390301,2.88295,3468.7,3467.6,12.6559]
[1721215390461,2.88301,3468.6,3467.7,2.88375]
[1721215390811,2.88247,3469.3,3467.6,2.3321]
[1721215390812,2.88328,3468.3,3467.6,2.3321]
[1721215390963,2.88328,3468.3,3467.6,3.157917]
[1721215391886,2.446,3468.5,3467.6,3.157917]
[1721215391887,5.32915,3468.5,3467.6,3.157917]
[1721215392197,2.88315,3468.5,3467.6,3.157917]
[1721215392384,2.88304,3468.6,3467.6,3.157917]
[1721215392584,2.88309,3468.5,3467.6,6.041747]
[1721215392758,2.88309,3468.5,3467.7,1.37713413]
[1721215393367,2.88301,3468.6,3467.7,1.37713413]
[1721215393563,2.88301,3468.6,3467.7,4.26087413]
[1721215393759,2.88292,3468.7,3467.8,2.88364]
[1721215394191,2.446,3468.9,3467.9,2.88358]
[1721215394192,2.88281,3468.9,3467.9,2.88358]
[1721215394496,2.88281,3468.9,3468.0,1.18863541]
[1721215394795,5.88253,3469.2,3468.0,1.18863541]
[1721215394796,2.88285,3468.8,3468.0,1.18863541]
[1721215395822,2.4835,3468.7,3468.0,1.18863541]
[1721215396009,2.4835,3468.7,3467.7,1.37713413]
[1721215396309,2.88319,3468.4,3467.5,2.88388]
[1721215396472,2.88319,3468.4,3467.4,0.29970511]
[1721215396669,2.88319,3468.4,3467.5,2.88387]
[1721215396874,2.88319,3468.4,3467.3,2.88402]
[1721215396875,2.88325,3468.3,3467.3,2.88402]
[1721215397188,2.88334,3468.2,3467.3,2.88402]
[1721215397387,2.88334,3468.2,3467.4,1.625023]
[1721215398918,2.88334,3468.2,3467.4,4.509003]
[1721215399089,2.88319,3468.4,3467.4,4.509003]
[1721215399288,2.88327,3468.3,3467.4,4.509003]
[1721215399618,2.88316,3468.5,3467.5,2.88385]
[1721215399821,2.88316,3468.5,3467.6,4.0973253]
[1721215402130,2.88297,3468.7,3467.7,2.88374]
[1721215402824,2.88281,3468.9,3467.9,2.88357]
[1721215403039,3.0,3468.8,3467.9,2.88357]
[1721215403225,3.0,3468.8,3467.8,2.88362]
[1721215403226,5.88285,3468.8,3467.8,2.88362]
[1721215403430,5.88285,3468.8,3467.9,0.71391153]
[1721215403629,5.88285,3468.8,3467.9,3.59749153]
[1721215403834,3.0,3468.8,3467.9,3.59749153]
[1721215403995,5.88276,3468.9,3467.9,6.07339153]
[1721215404509,5.88276,3468.9,3467.9,8.95691153]
[1721215404711,5.88276,3468.9,3468.0,1.11679115]
[1721215404914,2.4647,3469.3,3468.1,3.042]
[1721215405103,10.16219,3469.6,3468.5,2.88307]
[1721215405104,2.88234,3469.4,3468.5,2.88307]
[1721215405302,2.446,3469.7,3468.6,2.88292]
[1721215405633,5.13986,3469.8,3468.7,2.8829]
[1721215405634,2.88217,3469.6,3468.7,2.8829]
[1721215405792,2.88217,3469.6,3468.8,0.576582]
[1721215406297,2.88209,3469.7,3468.8,3.459412]
[1721215406698,2.88197,3469.9,3468.9,2.88275]
[1721215406911,2.88201,3469.8,3468.9,2.88275]
[1721215409331,2.88193,3469.9,3468.9,2.88275]
[1721215409517,5.88201,3469.8,3469.0,0.6342252]
[1721215411512,3.0,3469.8,3469.0,0.6342252]
[1721215412319,3.0,3469.8,3469.0,3.5168952]
[1721215412660,5.32748,3470.5,3469.1,3.98710272]
[1721215412799,5.32748,3470.5,3469.5,2.88218]
[1721215413501,2.88089,3471.2,3470.2,2.88167]
[1721215414002,5.76143,3471.4,3470.1,2.8817]
[1721215414205,0.820743,3471.3,3470.1,6.6861]
[1721215414395,2.88082,3471.3,3470.1,6.6861]
[1721215414619,2.88082,3471.3,3470.2,2.88162]
[1721215414823,2.88082,3471.3,3470.3,2.88155]
[1721215415294,3.0,3471.2,3470.3,2.88155]
[1721215415498,3.0,3471.2,3470.3,2.3999]
[1721215415731,2.88065,3471.5,3470.4,2.8815]
[1721215415910,3.0,3471.4,3470.4,2.8815]
[1721215416111,5.88068,3471.4,3470.4,2.8815]
[1721215416312,7.001393,3471.4,3470.4,2.8815]
[1721215417034,4.120713,3471.4,3470.5,2.88141]
[1721215417245,1.120713,3471.4,3470.5,2.88141]
[1721215417402,4.001403,3471.4,3470.5,2.88141]
[1721215417732,3.9881923,3471.3,3470.4,2.8815]
[1721215418507,2.88012,3472.1,3470.8,2.88116]
[1721215418729,2.3332,3472.2,3470.8,2.88116]
[1721215418730,5.21326,3472.2,3471.0,2.88095]
[1721215419049,2.3332,3472.2,3471.1,2.88091]
[1721215419261,2.88018,3472.0,3470.8,5.92314]
[1721215419571,2.446,3471.5,3470.5,2.8814]
[1721215421713,2.88069,3471.4,3470.6,2.88134]
[1721215421910,0.576111,3471.5,3470.6,2.88134]
[1721215422238,2.88035,3471.8,3470.9,2.88108]
[1721215422439,2.88027,3471.9,3471.0,2.2604]
[1721215423941,2.88027,3471.9,3471.1,0.05761112]
[1721215424924,2.8801,3472.1,3471.1,0.05761112]
[1721215425146,3.0,3472.2,3471.1,0.05761112]
[1721215425351,5.88002,3472.2,3471.3,2.8807]
[1721215428528,5.88002,3472.2,3471.4,2.88068]
[1721215428529,3.0,3472.2,3471.4,2.88068]
[1721215428729,5.87995,3472.3,3471.4,2.88068]
[1721215429786,2.88001,3472.2,3471.4,2.88068]
[1721215429962,5.87995,3472.3,3471.4,2.88068]
[1721215429963,3.0,3472.3,3471.4,3.50882811]
[1721215430168,3.0,3472.4,3471.7,2.88038]
[1721215430474,6.0295923,3472.9,3471.7,2.88038]
[1721215430792,2.87968,3472.6,3471.5,1.7]
[1721215430999,3.0,3472.5,3471.5,1.7]
[1721215431150,3.0,3472.5,3471.5,2.88053]
[1721215431356,5.32562,3472.7,3471.5,2.88053]
[1721215431357,2.87974,3472.6,3471.6,2.8805]
[1721215431604,2.87974,3472.6,3471.6,1.050303]
[1721215431605,5.87983,3472.5,3471.6,1.050303]
[1721215431906,5.87983,3472.5,3471.5,2.88059]
[1721215432067,5.87983,3472.5,3471.2,0.51990111]
[1721215432268,5.32602,3472.2,3471.2,2.88078]
[1721215432454,2.446,3471.8,3471.3,2.88075]
[1721215432894,5.446,3472.2,3471.4,2.88061]
[1721215433210,2.446,3472.2,3471.5,1.049739]
[1721215433390,2.446,3472.2,3471.2,4.58078]
[1721215433554,5.32608,3472.2,3471.3,2.88075]
[1721215433986,5.32608,3472.2,3471.2,1.7]
[1721215434199,5.32608,3472.2,3471.2,2.88079]
[1721215434499,5.32608,3472.2,3471.0,8.17738]
[1721215434500,2.446,3471.8,3471.0,5.14138]
[1721215434681,2.446,3471.8,3471.1,2.88092]
[1721215435670,2.446,3471.8,3471.2,2.88084]
[1721215435882,2.446,3472.2,3471.4,2.88067]
[1721215436562,2.446,3472.2,3471.3,2.88073]
[1721215436563,2.446,3472.2,3471.5,2.88057]
[1721215437797,2.446,3472.2,3471.3,2.88073]
[1721215438259,2.446,3472.2,3471.3,4.3111582]
[1721215438455,2.446,3472.2,3471.3,7.3471582]
[1721215438660,2.446,3472.2,3471.4,2.88067]
[1721215438855,2.446,3472.2,3471.4,2.8806]
[1721215439091,2.446,3472.2,3471.5,2.88059]
[1721215439390,2.446,3472.2,3471.5,4.07335182]
[1721215440904,2.446,3472.2,3471.5,4.07333182]
[1721215441097,2.446,3472.2,3471.5,1.19276182]
[1721215441254,5.32602,3472.2,3471.2,7.46159]
[1721215441458,5.32602,3472.2,3471.3,2.88068]
[1721215441689,5.32602,3472.2,3471.2,1.7]
[1721215441889,5.32602,3472.2,3471.3,1.4304482]
[1721215442311,5.32602,3472.2,3471.3,4.3111582]
[1721215442485,2.446,3472.2,3471.4,2.88067]
[1721215442914,2.446,3472.2,3471.5,2.88058]
[1721215445288,2.446,3472.2,3471.6,2.88046]
[1721215445621,0.1501323,3472.9,3472.0,2.88011]
[1721215445826,3.0296223,3472.9,3472.0,2.88011]
[1721215446036,2.87952,3472.8,3471.8,2.88028]
[1721215446182,2.87952,3472.8,3471.7,1.7]
[1721215446183,2.446,3472.6,3471.9,2.88026]
[1721215446386,2.446,3472.6,3472.0,0.458026]
[1721215446685,2.446,3472.6,3472.0,3.338206]
[1721215448433,3.0296223,3472.9,3472.0,3.338206]
[1721215448622,3.0296223,3472.9,3472.0,3.476206]
[1721215449590,0.1501323,3472.9,3472.1,2.88009]
[1721215449820,0.1501323,3472.9,3472.2,0.6356296]
[1721215450820,3.0296123,3472.9,3472.2,0.6356296]
[1721215451020,2.87982,3472.5,3472.0,0.138]
[1721215451207,2.446,3472.1,3472.0,0.138]
[1721215451519,5.3261,3472.1,3472.0,0.138]
[1721215451720,2.446,3472.1,3472.0,0.138]
[1721215451920,5.3261,3472.1,3472.0,0.138]
[1721215453121,2.446,3472.1,3472.0,0.138]
[1721215453322,0.1501323,3472.9,3472.0,0.138]
[1721215453323,4.8243,3472.6,3472.0,0.138]
[1721215453535,3.0,3472.5,3472.0,0.138]
[1721215455017,2.446,3472.6,3472.0,0.138]
[1721215455337,3.0296223,3472.9,3472.0,3.623602]
[1721215456453,0.1501323,3472.9,3472.1,3.88147469]
[1721215456753,3.0295723,3472.9,3472.1,2.88009]
[1721215457450,0.1501323,3472.9,3472.2,3.88138282]
[1721215457656,0.1501323,3472.9,3472.3,3.31423237]
[1721215457855,0.1501323,3472.9,3472.4,1.00137584]
[1721215458048,0.1501323,3472.9,3472.3,3.69069777]
[1721215458548,0.1501323,3472.9,3472.4,1.00133486]
[1721215458741,0.1501323,3472.9,3472.3,3.69069777]